[Event "Live Chess"]
[Site "Chess.com"]
[Date "2023.05.20"]
[Round "-"]
[White "seabuck"]
[Black "Ayush_prahlad_Gupta"]
[Result "1-0"]
[WhiteElo "1856"]
[BlackElo "1795"]
[TimeControl "300"]
[EndTime "11:38:33 PDT"]
[Termination "seabuck won by checkmate"]

1. d4 {[%clk 0:04:57.7]} 1... e5 {[%clk 0:04:59.9]} 2. e3 {[%clk 0:04:55.4]}
2... d6 {[%clk 0:04:59.5]} 3. c4 {[%clk 0:04:51.9]} 3... exd4 {[%clk 0:04:58.4]}
4. exd4 {[%clk 0:04:50.3]} 4... Nf6 {[%clk 0:04:58.3]} 5. Nc3 {[%clk 0:04:49.2]}
5... Be7 {[%clk 0:04:58.2]} 6. Nf3 {[%clk 0:04:48.1]} 6... O-O {[%clk
0:04:58.1]} 7. Be2 {[%clk 0:04:46.9]} 7... Nbd7 {[%clk 0:04:56.9]} 8. O-O {[%clk
0:04:45.8]} 8... Ng4 {[%clk 0:04:54.6]} 9. h3 {[%clk 0:04:40.1]} 9... Ngf6
{[%clk 0:04:52.2]} 10. Re1 {[%clk 0:04:37]} 10... Nh5 {[%clk 0:04:50.8]} 11. d5
{[%clk 0:04:27.9]} 11... Nc5 {[%clk 0:04:37.2]} 12. b4 {[%clk 0:04:17.6]} 12...
Na6 {[%clk 0:04:23.6]} 13. a3 {[%clk 0:04:14.8]} 13... c6 {[%clk 0:04:15.9]} 14.
dxc6 {[%clk 0:04:07.2]} 14... bxc6 {[%clk 0:04:15.8]} 15. Nd4 {[%clk 0:04:06]}
15... Nf6 {[%clk 0:04:10.9]} 16. Nxc6 {[%clk 0:04:03.9]} 16... Qd7 {[%clk
0:04:08.8]} 17. Nxe7+ {[%clk 0:04:00.4]} 17... Qxe7 {[%clk 0:04:08.5]} 18. Bf3
{[%clk 0:03:57.4]} 18... Qc7 {[%clk 0:04:02.1]} 19. Bxa8 {[%clk 0:03:51.8]}
19... Bxh3 {[%clk 0:04:01.9]} 20. gxh3 {[%clk 0:03:48]} 20... Rxa8 {[%clk
0:03:58.6]} 21. Qd4 {[%clk 0:03:40.8]} 21... Qd7 {[%clk 0:03:53]} 22. Kh2 {[%clk
0:03:30.6]} 22... Nc7 {[%clk 0:03:30.8]} 23. Bf4 {[%clk 0:03:18.1]} 23... Qf5
{[%clk 0:03:19.9]} 24. Qxd6 {[%clk 0:03:01.9]} 24... Ne6 {[%clk 0:03:17.1]} 25.
Bg3 {[%clk 0:02:48.2]} 25... Ng5 {[%clk 0:02:40.5]} 26. Qf4 {[%clk 0:02:08.5]}
26... Qxh3+ {[%clk 0:02:34.6]} 27. Kg1 {[%clk 0:02:07.2]} 27... h6 {[%clk
0:02:21.3]} 28. Nd5 {[%clk 0:02:01.3]} 28... Nh5 {[%clk 0:02:19.7]} 29. Qe3
{[%clk 0:01:23.8]} 29... Kh7 {[%clk 0:02:00]} 30. Nf4 {[%clk 0:01:19.8]} 30...
Nxf4 {[%clk 0:01:53]} 31. Qxf4 {[%clk 0:01:13.3]} 31... Rd8 {[%clk 0:01:42.6]}
32. Re5 {[%clk 0:01:08.2]} 32... Rd4 {[%clk 0:01:40.2]} 33. Qf5+ {[%clk
0:01:06.6]} 33... Qxf5 {[%clk 0:01:36.3]} 34. Rxf5 {[%clk 0:01:05.4]} 34... g6
{[%clk 0:01:34.3]} 35. Rxg5 {[%clk 0:01:04.4]} 35... hxg5 {[%clk 0:01:32.8]} 36.
c5 {[%clk 0:01:02.4]} 36... Rc4 {[%clk 0:01:29.8]} 37. Rd1 {[%clk 0:00:57.6]}
37... f5 {[%clk 0:01:28.3]} 38. Rd7+ {[%clk 0:00:56]} 38... Kh6 {[%clk
0:01:26.4]} 39. Rxa7 {[%clk 0:00:53.3]} 39... f4 {[%clk 0:01:25.4]} 40. Bh2
{[%clk 0:00:52.2]} 40... g4 {[%clk 0:01:23.4]} 41. Bxf4+ {[%clk 0:00:49.3]}
41... Rxf4 {[%clk 0:01:21.8]} 42. c6 {[%clk 0:00:48.5]} 42... Rc4 {[%clk
0:01:19.5]} 43. c7 {[%clk 0:00:47.5]} 43... Kh5 {[%clk 0:01:13.7]} 44. b5 {[%clk
0:00:46]} 44... Kh4 {[%clk 0:01:12.3]} 45. Kg2 {[%clk 0:00:42.6]} 45... g3
{[%clk 0:01:06.2]} 46. fxg3+ {[%clk 0:00:40.9]} 46... Kg4 {[%clk 0:01:05.3]} 47.
b6 {[%clk 0:00:38.7]} 47... Rc2+ {[%clk 0:01:03.7]} 48. Kf1 {[%clk 0:00:37.6]}
48... Kf3 {[%clk 0:01:01.1]} 49. Ke1 {[%clk 0:00:36.1]} 49... Ke3 {[%clk
0:00:59.3]} 50. Kd1 {[%clk 0:00:35]} 50... Kd3 {[%clk 0:00:54.9]} 51. b7 {[%clk
0:00:25.7]} 51... Rh2 {[%clk 0:00:43.4]} 52. Ke1 {[%clk 0:00:22.1]} 52... Ke3
{[%clk 0:00:41.3]} 53. Kf1 {[%clk 0:00:21.4]} 53... Kf3 {[%clk 0:00:39.3]} 54.
Kg1 {[%clk 0:00:20.4]} 54... Rg2+ {[%clk 0:00:38]} 55. Kh1 {[%clk 0:00:18.4]}
55... Kxg3 {[%clk 0:00:35.7]} 56. c8=Q {[%clk 0:00:15.6]} 56... Rh2+ {[%clk
0:00:33.4]} 57. Kg1 {[%clk 0:00:14.7]} 57... Rg2+ {[%clk 0:00:32.5]} 58. Kf1
{[%clk 0:00:14.2]} 58... Rf2+ {[%clk 0:00:31.8]} 59. Ke1 {[%clk 0:00:13.2]}
59... Ra2 {[%clk 0:00:28.8]} 60. Qc3+ {[%clk 0:00:12.6]} 60... Kf4 {[%clk
0:00:26.5]} 61. Ra4+ {[%clk 0:00:10.9]} 61... Kg5 {[%clk 0:00:24.7]} 62. Qc5+
{[%clk 0:00:09.9]} 62... Kh6 {[%clk 0:00:23.6]} 63. Rh4+ {[%clk 0:00:09.5]}
63... Kg7 {[%clk 0:00:21.7]} 64. Qe7+ {[%clk 0:00:09.1]} 64... Kg8 {[%clk
0:00:20.1]} 65. Rh7 {[%clk 0:00:06.8]} 65... Ra1+ {[%clk 0:00:18.4]} 66. Kd2
{[%clk 0:00:06.1]} 66... Ra2+ {[%clk 0:00:17.9]} 67. Kc3 {[%clk 0:00:05.8]}
67... Rxa3+ {[%clk 0:00:17.1]} 68. Kb4 {[%clk 0:00:04.9]} 68... Rb3+ {[%clk
0:00:15.2]} 69. Kxb3 {[%clk 0:00:04.1]} 69... g5 {[%clk 0:00:13]} 70. Qf7#
{[%clk 0:00:03.6]} 1-0

[Event "Live Chess"]
[Site "Chess.com"]
[Date "2023.05.20"]
[Round "-"]
[White "ReeceHockton"]
[Black "rideuv21"]
[Result "0-1"]
[WhiteElo "323"]
[BlackElo "1835"]
[TimeControl "300"]
[EndTime "11:38:34 PDT"]
[Termination "rideuv21 won by checkmate"]

1. d4 {[%clk 0:04:44.1]} 1... c5 {[%clk 0:04:59.9]} 2. e3 {[%clk 0:04:37.5]}
2... g6 {[%clk 0:04:58.3]} 3. Ne2 {[%clk 0:04:34.8]} 3... Bg7 {[%clk 0:04:56.9]}
4. dxc5 {[%clk 0:04:23.8]} 4... Qa5+ {[%clk 0:04:54.2]} 5. c3 {[%clk 0:04:15]}
5... Qxc5 {[%clk 0:04:51.9]} 6. Nd4 {[%clk 0:04:12.1]} 6... Nc6 {[%clk
0:04:47.3]} 7. b4 {[%clk 0:04:09.2]} 7... Qb6 {[%clk 0:04:43.1]} 8. Nxc6 {[%clk
0:04:07.1]} 8... dxc6 {[%clk 0:04:38.2]} 9. Qd2 {[%clk 0:04:04.1]} 9... Bf5
{[%clk 0:04:32.9]} 10. Na3 {[%clk 0:04:01.4]} 10... Nf6 {[%clk 0:04:26.6]} 11.
Nc4 {[%clk 0:04:00.1]} 11... Qc7 {[%clk 0:04:22.7]} 12. Bb2 {[%clk 0:03:47.8]}
12... O-O {[%clk 0:04:17.4]} 13. Rd1 {[%clk 0:03:43.6]} 13... Rad8 {[%clk
0:04:14.6]} 14. Bd3 {[%clk 0:03:25.4]} 14... Rxd3 {[%clk 0:04:12]} 15. Qxd3
{[%clk 0:03:18.5]} 15... Bxd3 {[%clk 0:04:11.9]} 16. Rxd3 {[%clk 0:03:17.7]}
16... Rd8 {[%clk 0:04:10.8]} 17. Rd2 {[%clk 0:03:13]} 17... Rxd2 {[%clk
0:04:08.2]} 18. Nxd2 {[%clk 0:03:12.6]} 18... a5 {[%clk 0:04:05.6]} 19. O-O
{[%clk 0:03:12]} 19... axb4 {[%clk 0:04:03.7]} 20. cxb4 {[%clk 0:03:10.8]} 20...
Nd5 {[%clk 0:04:03.3]} 21. Rd1 {[%clk 0:03:07.1]} 21... Bxb2 {[%clk 0:04:00.3]}
22. Nf3 {[%clk 0:03:04.4]} 22... Nxb4 {[%clk 0:03:58.3]} 23. Nd2 {[%clk
0:02:58]} 23... Qd6 {[%clk 0:03:55.1]} 24. Rb1 {[%clk 0:02:54.7]} 24... Qxd2
{[%clk 0:03:52.5]} 25. Rxb2 {[%clk 0:02:53.5]} 25... Qe1# {[%clk 0:03:50.8]} 0-1

[Event "Live Chess"]
[Site "Chess.com"]
[Date "2023.05.20"]
[Round "-"]
[White "1600x"]
[Black "apl_trainer"]
[Result "1-0"]
[WhiteElo "1599"]
[BlackElo "1625"]
[TimeControl "300"]
[EndTime "11:38:40 PDT"]
[Termination "1600x won by resignation"]

1. d4 {[%clk 0:04:56.8]} 1... Nf6 {[%clk 0:04:58.7]} 2. Nf3 {[%clk 0:04:54.1]}
2... c5 {[%clk 0:04:57.3]} 3. dxc5 {[%clk 0:04:53]} 3... Na6 {[%clk 0:04:54.4]}
4. Nc3 {[%clk 0:04:50.7]} 4... Nxc5 {[%clk 0:04:52.7]} 5. b4 {[%clk 0:04:49.2]}
5... Ne6 {[%clk 0:04:41]} 6. e4 {[%clk 0:04:44.5]} 6... g6 {[%clk 0:04:38.8]} 7.
e5 {[%clk 0:04:43.1]} 7... Nh5 {[%clk 0:04:25.1]} 8. Nd5 {[%clk 0:04:41.7]} 8...
Bg7 {[%clk 0:04:13.1]} 9. g4 {[%clk 0:04:39.7]} 9... Nhf4 {[%clk 0:03:51.9]} 10.
Nxf4 {[%clk 0:04:37.6]} 10... Nxf4 {[%clk 0:03:50.9]} 11. Bxf4 {[%clk
0:04:36.3]} 11... h5 {[%clk 0:03:48.7]} 12. Bc4 {[%clk 0:04:33.5]} 12... hxg4
{[%clk 0:03:42.6]} 13. Ng5 {[%clk 0:04:32.2]} 13... e6 {[%clk 0:03:41.6]} 14.
Ne4 {[%clk 0:04:31]} 14... d5 {[%clk 0:03:38.8]} 15. exd6 {[%clk 0:04:29]} 15...
O-O {[%clk 0:03:31.8]} 16. O-O {[%clk 0:04:27.2]} 16... b5 {[%clk 0:03:27.4]}
17. Bb3 {[%clk 0:04:26]} 17... Bb7 {[%clk 0:03:25.7]} 18. Bg5 {[%clk 0:04:21.7]}
18... Qc8 {[%clk 0:03:13]} 19. d7 {[%clk 0:04:17.9]} 19... Qc6 {[%clk
0:03:08.6]} 20. Re1 {[%clk 0:04:15.5]} 20... f6 {[%clk 0:02:46.3]} 21. Qxg4
{[%clk 0:04:13.1]} 21... fxg5 {[%clk 0:02:39.5]} 22. Bxe6+ {[%clk 0:04:10.5]}
22... Kh7 {[%clk 0:02:33.2]} 23. Nxg5+ {[%clk 0:04:08.9]} 1-0

[Event "Live Chess"]
[Site "Chess.com"]
[Date "2023.05.20"]
[Round "-"]
[White "martynstanley"]
[Black "seuen"]
[Result "0-1"]
[WhiteElo "1018"]
[BlackElo "1161"]
[TimeControl "300"]
[EndTime "11:38:45 PDT"]
[Termination "seuen won by checkmate"]

1. d4 {[%clk 0:04:59]} 1... Nf6 {[%clk 0:04:59]} 2. e3 {[%clk 0:04:58.4]} 2...
g6 {[%clk 0:04:58]} 3. Bd3 {[%clk 0:04:57.5]} 3... Bg7 {[%clk 0:04:56.3]} 4. c3
{[%clk 0:04:56.8]} 4... d6 {[%clk 0:04:55]} 5. f4 {[%clk 0:04:56.1]} 5... O-O
{[%clk 0:04:54.1]} 6. Nf3 {[%clk 0:04:55.3]} 6... Bg4 {[%clk 0:04:50.6]} 7. O-O
{[%clk 0:04:54.1]} 7... c5 {[%clk 0:04:42.4]} 8. Nbd2 {[%clk 0:04:52.3]} 8...
Nc6 {[%clk 0:04:38.3]} 9. h3 {[%clk 0:04:50.3]} 9... Be6 {[%clk 0:04:26.9]} 10.
e4 {[%clk 0:04:44.1]} 10... cxd4 {[%clk 0:04:03.1]} 11. cxd4 {[%clk 0:04:41.5]}
11... d5 {[%clk 0:03:58]} 12. e5 {[%clk 0:04:40.6]} 12... Ne4 {[%clk 0:03:52.3]}
13. Nxe4 {[%clk 0:04:38.6]} 13... dxe4 {[%clk 0:03:51.8]} 14. Bxe4 {[%clk
0:04:37.9]} 14... Bc4 {[%clk 0:03:48.4]} 15. Bd3 {[%clk 0:04:35.4]} 15... Bd5
{[%clk 0:03:34.3]} 16. b3 {[%clk 0:04:34.2]} 16... Bxf3 {[%clk 0:03:30.1]} 17.
Qxf3 {[%clk 0:04:32.8]} 17... Nxd4 {[%clk 0:03:28.5]} 18. Qe3 {[%clk 0:04:30.7]}
18... Qb6 {[%clk 0:03:03]} 19. Bb2 {[%clk 0:04:29.4]} 19... Ne2+ {[%clk
0:02:23]} 20. Bxe2 {[%clk 0:04:20.3]} 20... Qxe3+ {[%clk 0:02:21.4]} 21. Rf2
{[%clk 0:04:18.4]} 21... Rfd8 {[%clk 0:02:16.6]} 22. Bc1 {[%clk 0:04:16.9]}
22... Qb6 {[%clk 0:02:12.1]} 23. Bb2 {[%clk 0:04:12.3]} 23... f6 {[%clk
0:02:07.1]} 24. exf6 {[%clk 0:04:10.8]} 24... Bxf6 {[%clk 0:02:07]} 25. Bxf6
{[%clk 0:04:08.4]} 25... exf6 {[%clk 0:02:06.9]} 26. Rd1 {[%clk 0:04:07]} 26...
Rxd1+ {[%clk 0:02:05.1]} 27. Bxd1 {[%clk 0:04:06.2]} 27... Re8 {[%clk
0:02:02.4]} 28. Kf1 {[%clk 0:04:04.9]} 28... Rc8 {[%clk 0:01:57.3]} 29. Rc2
{[%clk 0:04:03]} 29... Rxc2 {[%clk 0:01:54.8]} 30. Bxc2 {[%clk 0:04:02.4]} 30...
Qb5+ {[%clk 0:01:50.9]} 31. Ke1 {[%clk 0:04:01.3]} 31... Qe8+ {[%clk 0:01:44.8]}
32. Kd2 {[%clk 0:04:00]} 32... Qd7+ {[%clk 0:01:39.3]} 33. Bd3 {[%clk
0:03:59.1]} 33... Qd6 {[%clk 0:01:33.7]} 34. Kc3 {[%clk 0:03:57.9]} 34... Qxf4
{[%clk 0:01:32]} 35. Bc4+ {[%clk 0:03:57.1]} 35... Kg7 {[%clk 0:01:31]} 36. Kb4
{[%clk 0:03:54.8]} 36... Qf2 {[%clk 0:01:27.7]} 37. a4 {[%clk 0:03:52.6]} 37...
Qxg2 {[%clk 0:01:26.3]} 38. h4 {[%clk 0:03:51.8]} 38... Qg4 {[%clk 0:01:23.8]}
39. Kc5 {[%clk 0:03:50.8]} 39... Qxh4 {[%clk 0:01:23]} 40. Bd5 {[%clk
0:03:50.1]} 40... Qg3 {[%clk 0:01:16.6]} 41. Bxb7 {[%clk 0:03:48.4]} 41... Qxb3
{[%clk 0:01:14.7]} 42. Bc6 {[%clk 0:03:46]} 42... h5 {[%clk 0:01:12]} 43. Kd6
{[%clk 0:03:44]} 43... g5 {[%clk 0:01:11]} 44. a5 {[%clk 0:03:43.1]} 44... h4
{[%clk 0:01:09.4]} 45. a6 {[%clk 0:03:42.5]} 45... Qb6 {[%clk 0:01:07.9]} 46.
Kd5 {[%clk 0:03:37.9]} 46... Qxa6 {[%clk 0:01:06.6]} 47. Bd7 {[%clk 0:03:36.4]}
47... Qd3+ {[%clk 0:01:02.8]} 48. Ke6 {[%clk 0:03:35.2]} 48... Qxd7+ {[%clk
0:01:01.3]} 49. Kxd7 {[%clk 0:03:34.7]} 49... h3 {[%clk 0:01:01]} 50. Ke6 {[%clk
0:03:33.6]} 50... h2 {[%clk 0:00:59.9]} 51. Kd6 {[%clk 0:03:32.9]} 51... h1=Q
{[%clk 0:00:59.8]} 52. Kc5 {[%clk 0:03:31.4]} 52... Qg1+ {[%clk 0:00:55.5]} 53.
Kd5 {[%clk 0:03:29.3]} 53... Qe3 {[%clk 0:00:54.2]} 54. Kd6 {[%clk 0:03:28]}
54... Qe4 {[%clk 0:00:52]} 55. Kc7 {[%clk 0:03:26.7]} 55... Qd5 {[%clk
0:00:50.6]} 56. Kb8 {[%clk 0:03:24.4]} 56... Qd7 {[%clk 0:00:45.1]} 57. Ka8
{[%clk 0:03:19.4]} 57... f5 {[%clk 0:00:44.7]} 58. Kb8 {[%clk 0:03:18]} 58...
Kf6 {[%clk 0:00:44.6]} 59. Ka8 {[%clk 0:03:17.4]} 59... Ke6 {[%clk 0:00:44.5]}
60. Kb8 {[%clk 0:03:16.1]} 60... Kd6 {[%clk 0:00:44.4]} 61. Ka8 {[%clk
0:03:15.4]} 61... Kc6 {[%clk 0:00:44.3]} 62. Kb8 {[%clk 0:03:14.3]} 62... Qb7#
{[%clk 0:00:44.2]} 0-1

[Event "Live Chess"]
[Site "Chess.com"]
[Date "2023.05.20"]
[Round "-"]
[White "JohanKjeldahl"]
[Black "LaupMiths"]
[Result "1-0"]
[WhiteElo "1803"]
[BlackElo "1824"]
[TimeControl "300"]
[EndTime "11:38:47 PDT"]
[Termination "JohanKjeldahl won by resignation"]

1. c4 {[%clk 0:04:56.8]} 1... c5 {[%clk 0:04:57.7]} 2. Nc3 {[%clk 0:04:54.6]}
2... e6 {[%clk 0:04:56.8]} 3. Nf3 {[%clk 0:04:52.5]} 3... d5 {[%clk 0:04:55.6]}
4. cxd5 {[%clk 0:04:51.7]} 4... exd5 {[%clk 0:04:54.3]} 5. d4 {[%clk 0:04:50.6]}
5... Nc6 {[%clk 0:04:49.9]} 6. g3 {[%clk 0:04:48.7]} 6... cxd4 {[%clk
0:04:48.1]} 7. Nxd4 {[%clk 0:04:47.2]} 7... Bc5 {[%clk 0:04:47.6]} 8. Nb3 {[%clk
0:04:40.2]} 8... Bb6 {[%clk 0:04:46.2]} 9. Bg2 {[%clk 0:04:39]} 9... Nf6 {[%clk
0:04:41.5]} 10. O-O {[%clk 0:04:37.6]} 10... O-O {[%clk 0:04:39.4]} 11. Bg5
{[%clk 0:04:36.2]} 11... Bg4 {[%clk 0:04:37.1]} 12. Nxd5 {[%clk 0:04:29.7]}
12... Qxd5 {[%clk 0:04:33]} 13. Bxd5 {[%clk 0:04:25.6]} 1-0

[Event "Live Chess"]
[Site "Chess.com"]
[Date "2023.05.20"]
[Round "-"]
[White "CeladonFish"]
[Black "LL220284LL"]
[Result "0-1"]
[WhiteElo "1087"]
[BlackElo "2396"]
[TimeControl "300"]
[EndTime "11:38:57 PDT"]
[Termination "LL220284LL won by checkmate"]

1. d4 {[%clk 0:04:59.3]} 1... c5 {[%clk 0:04:58.3]} 2. c4 {[%clk 0:04:57.7]}
2... cxd4 {[%clk 0:04:57]} 3. Qxd4 {[%clk 0:04:55.4]} 3... Nc6 {[%clk
0:04:56.5]} 4. Qd1 {[%clk 0:04:53.9]} 4... Nf6 {[%clk 0:04:55.6]} 5. Nc3 {[%clk
0:04:52.2]} 5... e6 {[%clk 0:04:53.8]} 6. Bf4 {[%clk 0:04:46.2]} 6... d5 {[%clk
0:04:52]} 7. cxd5 {[%clk 0:04:44.7]} 7... exd5 {[%clk 0:04:51.8]} 8. Nb5 {[%clk
0:04:40.6]} 8... Qa5+ {[%clk 0:04:48.1]} 9. Nc3 {[%clk 0:04:37.9]} 9... d4
{[%clk 0:04:47]} 10. e3 {[%clk 0:04:25.5]} 10... dxc3 {[%clk 0:04:44.7]} 11.
bxc3 {[%clk 0:04:24.4]} 11... Qxc3+ {[%clk 0:04:43.4]} 12. Ke2 {[%clk
0:04:23.7]} 12... Qb2+ {[%clk 0:04:38.1]} 13. Kf3 {[%clk 0:04:18.7]} 13... Bg4+
{[%clk 0:04:36.8]} 14. Kg3 {[%clk 0:04:16.7]} 14... Bxd1 {[%clk 0:04:36.7]} 15.
Rxd1 {[%clk 0:04:15.4]} 15... Nh5+ {[%clk 0:04:35]} 16. Kf3 {[%clk 0:04:06.4]}
16... Nxf4 {[%clk 0:04:34.1]} 17. Kxf4 {[%clk 0:04:06.2]} 17... Bd6+ {[%clk
0:04:32.7]} 18. Ke4 {[%clk 0:04:05.3]} 18... O-O {[%clk 0:04:28.8]} 19. Rxd6
{[%clk 0:04:04.4]} 19... Qe5+ {[%clk 0:04:27.5]} 20. Kf3 {[%clk 0:04:02.8]}
20... Qxd6 {[%clk 0:04:27.4]} 21. Ke2 {[%clk 0:04:02.1]} 21... Rad8 {[%clk
0:04:25.8]} 22. Kf3 {[%clk 0:04:00.4]} 22... Qd5+ {[%clk 0:04:24.6]} 23. Kg3
{[%clk 0:03:59.4]} 23... Qg5+ {[%clk 0:04:23.5]} 24. Kf3 {[%clk 0:03:58.6]}
24... Ne5+ {[%clk 0:04:23.1]} 25. Ke2 {[%clk 0:03:57.5]} 25... Qg4+ {[%clk
0:04:22.6]} 26. f3 {[%clk 0:03:56]} 26... Qc4+ {[%clk 0:04:21.6]} 27. Kf2 {[%clk
0:03:55.1]} 27... Qxa2+ {[%clk 0:04:20.1]} 28. Kg3 {[%clk 0:03:54]} 28... Qd2
{[%clk 0:04:19.5]} 29. f4 {[%clk 0:03:53.2]} 29... Qxe3+ {[%clk 0:04:18.5]} 30.
Kh4 {[%clk 0:03:52.6]} 30... Qxf4+ {[%clk 0:04:17.4]} 31. Kh5 {[%clk 0:03:52.1]}
31... Qg4# {[%clk 0:04:16.7]} 0-1

[Event "Live Chess"]
[Site "Chess.com"]
[Date "2023.05.20"]
[Round "-"]
[White "Delacorta"]
[Black "worldchessleaguelive"]
[Result "1/2-1/2"]
[WhiteElo "1390"]
[BlackElo "1349"]
[TimeControl "300"]
[EndTime "11:39:01 PDT"]
[Termination "Game drawn - insufficient material"]

1. d4 {[%clk 0:04:58.5]} 1... d5 {[%clk 0:04:59.2]} 2. Nf3 {[%clk 0:04:57.6]}
2... Nf6 {[%clk 0:04:57.7]} 3. e3 {[%clk 0:04:57]} 3... Bf5 {[%clk 0:04:53]} 4.
Bd3 {[%clk 0:04:55.5]} 4... Bxd3 {[%clk 0:04:50.4]} 5. cxd3 {[%clk 0:04:55.4]}
5... e6 {[%clk 0:04:49.2]} 6. e4 {[%clk 0:04:53.9]} 6... dxe4 {[%clk 0:04:47.2]}
7. dxe4 {[%clk 0:04:52.6]} 7... Bb4+ {[%clk 0:04:45.1]} 8. Nc3 {[%clk
0:04:50.1]} 8... Nxe4 {[%clk 0:04:41.3]} 9. Bd2 {[%clk 0:04:48.5]} 9... Nxd2
{[%clk 0:04:37.1]} 10. Qxd2 {[%clk 0:04:47.7]} 10... Bxc3 {[%clk 0:04:36.3]} 11.
bxc3 {[%clk 0:04:45.5]} 11... O-O {[%clk 0:04:35.6]} 12. Rb1 {[%clk 0:04:42.7]}
12... b6 {[%clk 0:04:28.8]} 13. O-O {[%clk 0:04:41.5]} 13... c5 {[%clk
0:04:25.8]} 14. dxc5 {[%clk 0:04:31.1]} 14... Qxd2 {[%clk 0:04:23.3]} 15. Nxd2
{[%clk 0:04:30.3]} 15... bxc5 {[%clk 0:04:22.9]} 16. Ne4 {[%clk 0:04:26.9]}
16... Na6 {[%clk 0:04:14.4]} 17. Rb7 {[%clk 0:04:22.7]} 17... Rfb8 {[%clk
0:04:09.2]} 18. Rfb1 {[%clk 0:04:20.1]} 18... Rxb7 {[%clk 0:04:06.2]} 19. Rxb7
{[%clk 0:04:18.6]} 19... Rb8 {[%clk 0:04:05.5]} 20. Rxb8+ {[%clk 0:04:15.6]}
20... Nxb8 {[%clk 0:04:04.1]} 21. Nxc5 {[%clk 0:04:14.7]} 21... Kf8 {[%clk
0:04:03.6]} 22. Kf1 {[%clk 0:04:10.6]} 22... Ke7 {[%clk 0:04:03.1]} 23. Ke2
{[%clk 0:04:09.7]} 23... Kd6 {[%clk 0:04:02.6]} 24. Nb3 {[%clk 0:03:58.1]} 24...
Kd5 {[%clk 0:04:00.9]} 25. Kd3 {[%clk 0:03:56.5]} 25... Nd7 {[%clk 0:03:58.2]}
26. f4 {[%clk 0:03:47.6]} 26... g5 {[%clk 0:03:42.3]} 27. fxg5 {[%clk
0:03:28.4]} 27... e5 {[%clk 0:03:41.4]} 28. c4+ {[%clk 0:03:25.2]} 28... Ke6
{[%clk 0:03:40.2]} 29. Ke4 {[%clk 0:03:23.8]} 29... Nb6 {[%clk 0:03:37.6]} 30.
c5 {[%clk 0:03:06.5]} 30... Na4 {[%clk 0:03:31.9]} 31. h4 {[%clk 0:02:41]} 31...
Nc3+ {[%clk 0:03:30.2]} 32. Kd3 {[%clk 0:02:33.4]} 32... Nxa2 {[%clk 0:03:29]}
33. Kc4 {[%clk 0:02:17.6]} 33... f5 {[%clk 0:03:11.1]} 34. gxf6 {[%clk
0:02:15.5]} 34... Kxf6 {[%clk 0:03:10.1]} 35. Kd5 {[%clk 0:01:59.7]} 35... Nc3+
{[%clk 0:03:07]} 36. Kc6 {[%clk 0:01:48.4]} 36... e4 {[%clk 0:03:05.5]} 37. Kd7
{[%clk 0:01:47.1]} 37... Ke5 {[%clk 0:02:32.1]} 38. c6 {[%clk 0:01:45.4]} 38...
Nd5 {[%clk 0:02:25.6]} 39. c7 {[%clk 0:01:39.8]} 39... Nb6+ {[%clk 0:02:13.3]}
40. Kd8 {[%clk 0:01:37.8]} 40... a5 {[%clk 0:01:57.4]} 41. Nxa5 {[%clk
0:01:35.2]} 41... e3 {[%clk 0:01:53]} 42. Nc6+ {[%clk 0:01:00.4]} 42... Ke4
{[%clk 0:01:33.9]} 43. Nb4 {[%clk 0:00:58.1]} 43... e2 {[%clk 0:01:24.1]} 44.
Nc2 {[%clk 0:00:56.5]} 44... Kd3 {[%clk 0:01:22.8]} 45. Ne1+ {[%clk 0:00:55.3]}
45... Kd2 {[%clk 0:01:21.5]} 46. Nf3+ {[%clk 0:00:54.3]} 46... Ke3 {[%clk
0:01:18]} 47. Ne1 {[%clk 0:00:53.2]} 47... Kf2 {[%clk 0:01:16.5]} 48. Nc2 {[%clk
0:00:52.1]} 48... Kxg2 {[%clk 0:01:11.1]} 49. c8=Q {[%clk 0:00:48.9]} 49... Nxc8
{[%clk 0:01:09]} 50. Kxc8 {[%clk 0:00:48]} 50... Kh3 {[%clk 0:01:07.1]} 51. h5
{[%clk 0:00:44.4]} 51... Kh4 {[%clk 0:01:06.1]} 52. h6 {[%clk 0:00:43.2]} 52...
Kh5 {[%clk 0:01:05.4]} 53. Kd7 {[%clk 0:00:36.3]} 53... Kxh6 {[%clk 0:01:04.4]}
54. Ke6 {[%clk 0:00:35.3]} 54... Kg5 {[%clk 0:01:03.9]} 55. Ke5 {[%clk 0:00:33]}
55... Kg4 {[%clk 0:01:02.5]} 56. Ke4 {[%clk 0:00:31.8]} 56... h5 {[%clk
0:00:58.6]} 57. Ke3 {[%clk 0:00:28.4]} 57... Kg3 {[%clk 0:00:56.3]} 58. Kxe2
{[%clk 0:00:24.7]} 58... h4 {[%clk 0:00:55.9]} 59. Ne3 {[%clk 0:00:23.1]} 59...
h3 {[%clk 0:00:53]} 60. Nf1+ {[%clk 0:00:22]} 60... Kg2 {[%clk 0:00:52]} 61. Ke1
{[%clk 0:00:20.1]} 61... Kg1 {[%clk 0:00:49.7]} 62. Ke2 {[%clk 0:00:18]} 62...
Kg2 {[%clk 0:00:48.7]} 63. Ke1 {[%clk 0:00:17.4]} 63... Kf3 {[%clk 0:00:47.3]}
64. Nh2+ {[%clk 0:00:15.2]} 64... Kg2 {[%clk 0:00:46.2]} 65. Ng4 {[%clk
0:00:14.3]} 65... Kg3 {[%clk 0:00:44.7]} 66. Nh2 {[%clk 0:00:10.3]} 66... Kh4
{[%clk 0:00:35.9]} 67. Kf1 {[%clk 0:00:10.2]} 67... Kg3 {[%clk 0:00:34.2]} 68.
Kg1 {[%clk 0:00:09.3]} 68... Kh4 {[%clk 0:00:32.6]} 69. Nf3+ {[%clk 0:00:06.9]}
69... Kg4 {[%clk 0:00:30.4]} 70. Kh2 {[%clk 0:00:06.2]} 70... Kxf3 {[%clk
0:00:21.5]} 71. Kxh3 {[%clk 0:00:04.8]} 1/2-1/2

[Event "Live Chess"]
[Site "Chess.com"]
[Date "2023.05.20"]
[Round "-"]
[White "Ferrarifan27"]
[Black "risinghelios"]
[Result "1-0"]
[WhiteElo "2104"]
[BlackElo "1936"]
[TimeControl "300"]
[EndTime "11:39:01 PDT"]
[Termination "Ferrarifan27 won by resignation"]

1. e4 {[%clk 0:04:56.9]} 1... c5 {[%clk 0:04:59.3]} 2. Nf3 {[%clk 0:04:55.2]}
2... Nc6 {[%clk 0:04:58.5]} 3. b4 {[%clk 0:04:53]} 3... Nxb4 {[%clk 0:04:56.8]}
4. c3 {[%clk 0:04:51.6]} 4... Nc6 {[%clk 0:04:56.1]} 5. d4 {[%clk 0:04:51]} 5...
cxd4 {[%clk 0:04:55.7]} 6. cxd4 {[%clk 0:04:50.9]} 6... d5 {[%clk 0:04:55.4]} 7.
exd5 {[%clk 0:04:49.6]} 7... Qxd5 {[%clk 0:04:55.3]} 8. Nc3 {[%clk 0:04:48.8]}
8... Qd8 {[%clk 0:04:54.3]} 9. d5 {[%clk 0:04:47.6]} 9... Nb8 {[%clk 0:04:52.8]}
10. Bc4 {[%clk 0:04:43.4]} 10... Bg4 {[%clk 0:04:51.8]} 11. O-O {[%clk
0:04:41.5]} 11... Nf6 {[%clk 0:04:51]} 12. h3 {[%clk 0:04:40.2]} 12... Bxf3
{[%clk 0:04:50.2]} 13. Qxf3 {[%clk 0:04:38.8]} 13... Nbd7 {[%clk 0:04:50.1]} 14.
Re1 {[%clk 0:04:36.6]} 14... g6 {[%clk 0:04:48.3]} 15. Ba3 {[%clk 0:04:32.3]}
15... Rc8 {[%clk 0:04:44]} 16. Nb5 {[%clk 0:04:25.7]} 16... Nb6 {[%clk
0:04:37.9]} 17. Nd6+ {[%clk 0:04:20.7]} 1-0